[Event "*** Titled Tuesday Blitz"]
[Site "Chess.com"]
[Date "2021.03.30"]
[Round "3"]
[White "lider34"]
[Black "DanielTitichoca"]
[Result "1-0"]
[WhiteElo "2474"]
[BlackElo "2268"]
[TimeControl "180+1"]
[EndTime "10:28:55 PDT"]
[Termination "lider34 won by checkmate"]

1. e4 {[%clk 0:03:00.9]} 1... c5 {[%clk 0:02:57.8]} 2. c3 {[%clk 0:02:59.6]}
2... d5 {[%clk 0:02:54.7]} 3. exd5 {[%clk 0:02:58.8]} 3... Qxd5 {[%clk
0:02:55.6]} 4. d4 {[%clk 0:02:59.3]} 4... Nc6 {[%clk 0:02:52.8]} 5. Nf3 {[%clk
0:02:58.7]} 5... Bg4 {[%clk 0:02:52.5]} 6. Be2 {[%clk 0:02:57.3]} 6... e5 {[%clk
0:02:39.3]} 7. dxe5 {[%clk 0:02:51.5]} 7... Bxf3 {[%clk 0:02:36.3]} 8. Bxf3
{[%clk 0:02:49.3]} 8... Qxd1+ {[%clk 0:02:35.2]} 9. Kxd1 {[%clk 0:02:47.4]} 9...
O-O-O+ {[%clk 0:02:34.2]} 10. Kc2 {[%clk 0:02:47]} 10... Nxe5 {[%clk 0:02:33.9]}
11. Be2 {[%clk 0:02:45.3]} 11... Nf6 {[%clk 0:02:28.8]} 12. Bf4 {[%clk
0:02:44.3]} 12... Ng6 {[%clk 0:02:27.5]} 13. Bg3 {[%clk 0:02:37.8]} 13... Bd6
{[%clk 0:02:23.7]} 14. Nd2 {[%clk 0:02:37.6]} 14... Bxg3 {[%clk 0:02:20.7]} 15.
hxg3 {[%clk 0:02:38.5]} 15... h6 {[%clk 0:02:20.6]} 16. Nc4 {[%clk 0:02:32.4]}
16... Rhe8 {[%clk 0:02:18.7]} 17. Rhe1 {[%clk 0:02:31.6]} 17... Ne4 {[%clk
0:02:17.6]} 18. Bg4+ {[%clk 0:02:25.4]} 18... Kc7 {[%clk 0:02:15.7]} 19. Re2
{[%clk 0:02:24.8]} 19... Nf6 {[%clk 0:02:05.9]} 20. Bf3 {[%clk 0:02:19.5]} 20...
Rxe2+ {[%clk 0:02:02.7]} 21. Bxe2 {[%clk 0:02:19]} 21... Ne4 {[%clk 0:01:59.9]}
22. Bf3 {[%clk 0:02:10.3]} 22... Nxf2 {[%clk 0:01:43.3]} 23. Rf1 {[%clk
0:02:07.9]} 23... Nd3 {[%clk 0:01:38.4]} 24. Be4 {[%clk 0:02:00.7]} 24... Nde5
{[%clk 0:01:35.7]} 25. Bxg6 {[%clk 0:01:50.7]} 25... Nxg6 {[%clk 0:01:32.7]} 26.
Rxf7+ {[%clk 0:01:49.1]} 26... Rd7 {[%clk 0:01:33.2]} 27. Rf5 {[%clk 0:01:41.6]}
27... b6 {[%clk 0:01:31]} 28. a4 {[%clk 0:01:39.6]} 28... Ne7 {[%clk 0:01:25.8]}
29. Rf8 {[%clk 0:01:34.4]} 29... Nd5 {[%clk 0:01:22.2]} 30. Kb3 {[%clk
0:01:26.1]} 30... Re7 {[%clk 0:01:14.1]} 31. Ra8 {[%clk 0:01:23.4]} 31... Kc6
{[%clk 0:01:05.3]} 32. Rc8+ {[%clk 0:01:19]} 32... Kd7 {[%clk 0:01:01.1]} 33.
Rg8 {[%clk 0:01:11]} 33... Nf6 {[%clk 0:00:55.8]} 34. Ra8 {[%clk 0:01:08.2]}
34... Kc6 {[%clk 0:00:53.8]} 35. Rc8+ {[%clk 0:00:47.6]} 35... Rc7 {[%clk
0:00:47.7]} 36. Rf8 {[%clk 0:00:43.1]} 36... Re7 {[%clk 0:00:44.8]} 37. Na3
{[%clk 0:00:36.4]} 37... Ne4 {[%clk 0:00:32.7]} 38. a5 {[%clk 0:00:31.5]} 38...
b5 {[%clk 0:00:30.5]} 39. Rc8+ {[%clk 0:00:27.1]} 39... Kd5 {[%clk 0:00:26.5]}
40. Nxb5 {[%clk 0:00:26]} 40... c4+ {[%clk 0:00:26.2]} 41. Kb4 {[%clk
0:00:22.5]} 41... a6 {[%clk 0:00:19.8]} 42. Nc7+ {[%clk 0:00:20.6]} 42... Kd6
{[%clk 0:00:17.6]} 43. Nxa6 {[%clk 0:00:19.7]} 43... Nd2 {[%clk 0:00:17]} 44.
Nc5 {[%clk 0:00:18.3]} 44... Nf1 {[%clk 0:00:13.2]} 45. a6 {[%clk 0:00:17.1]}
45... Ne3 {[%clk 0:00:12.1]} 46. Nb7+ {[%clk 0:00:15.6]} 46... Kd7 {[%clk
0:00:09.6]} 47. Rd8+ {[%clk 0:00:14.5]} 47... Kc7 {[%clk 0:00:09.9]} 48. a7
{[%clk 0:00:14.5]} 48... Kxb7 {[%clk 0:00:10.1]} 49. a8=Q+ {[%clk 0:00:14.5]}
49... Kc7 {[%clk 0:00:10.8]} 50. Qb8+ {[%clk 0:00:13.4]} 50... Kc6 {[%clk
0:00:10.5]} 51. Rd6# {[%clk 0:00:13.9]} 1-0

[Event "*** Titled Tuesday Blitz"]
[Site "Chess.com"]
[Date "2021.03.30"]
[Round "3"]
[White "Murad_Ibrahimli"]
[Black "swisspower96"]
[Result "1-0"]
[WhiteElo "2819"]
[BlackElo "2582"]
[TimeControl "180+1"]
[EndTime "10:28:58 PDT"]
[Termination "Murad_Ibrahimli won by resignation"]

1. Nf3 {[%clk 0:03:00.9]} 1... d5 {[%clk 0:02:59.9]} 2. g3 {[%clk 0:03:00.6]}
2... Nf6 {[%clk 0:03:00.1]} 3. Bg2 {[%clk 0:03:01.1]} 3... c5 {[%clk 0:02:59.8]}
4. O-O {[%clk 0:02:59.9]} 4... e6 {[%clk 0:03:00.1]} 5. d4 {[%clk 0:02:59.7]}
5... cxd4 {[%clk 0:03:00.5]} 6. Nxd4 {[%clk 0:03:00.2]} 6... e5 {[%clk
0:03:01.2]} 7. Nb3 {[%clk 0:02:59.1]} 7... Be6 {[%clk 0:02:59.3]} 8. c4 {[%clk
0:02:57.3]} 8... Nc6 {[%clk 0:02:55.8]} 9. cxd5 {[%clk 0:02:44.3]} 9... Nxd5
{[%clk 0:02:55.9]} 10. Nc3 {[%clk 0:02:34.3]} 10... Nxc3 {[%clk 0:02:55.9]} 11.
bxc3 {[%clk 0:02:35.2]} 11... Be7 {[%clk 0:02:56]} 12. Be3 {[%clk 0:02:33.8]}
12... O-O {[%clk 0:02:52.1]} 13. Rb1 {[%clk 0:02:33.5]} 13... Qc7 {[%clk
0:02:48.5]} 14. Nc5 {[%clk 0:02:29]} 14... Bxc5 {[%clk 0:02:47.1]} 15. Bxc5
{[%clk 0:02:29.9]} 15... Rfd8 {[%clk 0:02:47.4]} 16. Qa4 {[%clk 0:02:30.2]}
16... Bd5 {[%clk 0:02:43.2]} 17. Rfd1 {[%clk 0:02:02.2]} 17... Bxg2 {[%clk
0:02:42.4]} 18. Kxg2 {[%clk 0:02:03.1]} 18... b6 {[%clk 0:02:34.8]} 19. Be3
{[%clk 0:01:47.9]} 19... Na5 {[%clk 0:02:34.8]} 20. Qe4 {[%clk 0:01:46.8]} 20...
Nc4 {[%clk 0:02:20]} 21. Bg5 {[%clk 0:01:42]} 21... f6 {[%clk 0:02:00.2]} 22.
Be3 {[%clk 0:01:36.6]} 22... Qf7 {[%clk 0:01:51.5]} 23. a4 {[%clk 0:01:05.5]}
23... h6 {[%clk 0:01:38.6]} 24. h4 {[%clk 0:01:02.5]} 24... f5 {[%clk
0:01:24.7]} 25. Qf3 {[%clk 0:01:02.5]} 25... Rac8 {[%clk 0:00:59.3]} 26. Rxd8+
{[%clk 0:00:37.3]} 26... Rxd8 {[%clk 0:00:58.7]} 27. Rb4 {[%clk 0:00:37.9]}
27... Rc8 {[%clk 0:00:27.4]} 28. Rb5 {[%clk 0:00:34.5]} 28... Kh7 {[%clk
0:00:23]} 29. a5 {[%clk 0:00:32.7]} 29... bxa5 {[%clk 0:00:11.8]} 30. Rb7 {[%clk
0:00:29.9]} 30... Nxe3+ {[%clk 0:00:11.7]} 31. fxe3 {[%clk 0:00:29.8]} 31... Qe6
{[%clk 0:00:11.5]} 32. Rxa7 {[%clk 0:00:27.9]} 32... Rxc3 {[%clk 0:00:11.4]} 33.
Rxa5 {[%clk 0:00:28]} 33... Rc4 {[%clk 0:00:08.8]} 34. Ra8 {[%clk 0:00:20.2]}
34... Re4 {[%clk 0:00:08.5]} 35. Kf2 {[%clk 0:00:19.3]} 35... Qf6 {[%clk
0:00:05.9]} 36. h5 {[%clk 0:00:18.7]} 36... Qf7 {[%clk 0:00:04.3]} 37. Ra6
{[%clk 0:00:18.2]} 37... Rg4 {[%clk 0:00:04.3]} 38. Ra5 {[%clk 0:00:17]} 38...
Qe6 {[%clk 0:00:03.1]} 39. Rc5 {[%clk 0:00:14.9]} 39... Rg5 {[%clk 0:00:03.5]}
40. e4 {[%clk 0:00:13.5]} 40... fxe4 {[%clk 0:00:04]} 41. Qxe4+ {[%clk
0:00:13.9]} 41... Qf5+ {[%clk 0:00:04.7]} 42. Qxf5+ {[%clk 0:00:13.8]} 42...
Rxf5+ {[%clk 0:00:05.6]} 43. Kg2 {[%clk 0:00:13.3]} 43... Rxh5 {[%clk
0:00:06.5]} 44. e4 {[%clk 0:00:13.5]} 44... Rg5 {[%clk 0:00:07.4]} 45. Kf3
{[%clk 0:00:13.8]} 45... h5 {[%clk 0:00:07.9]} 46. Rc6 {[%clk 0:00:14.3]} 46...
g6 {[%clk 0:00:08]} 47. Rc7+ {[%clk 0:00:14.5]} 47... Kh6 {[%clk 0:00:08.6]} 48.
Re7 {[%clk 0:00:15]} 48... h4 {[%clk 0:00:03.8]} 49. gxh4 {[%clk 0:00:15.1]}
49... Rh5 {[%clk 0:00:04.4]} 50. Kg4 {[%clk 0:00:15.5]} 50... g5 {[%clk
0:00:04.1]} 51. Re6+ {[%clk 0:00:15.7]} 51... Kg7 {[%clk 0:00:04.4]} 52. Kxh5
{[%clk 0:00:16.2]} 1-0

[Event "*** Titled Tuesday Blitz"]
[Site "Chess.com"]
[Date "2021.03.30"]
[Round "3"]
[White "I_Enchev"]
[Black "xozr"]
[Result "1-0"]
[WhiteElo "2537"]
[BlackElo "2315"]
[TimeControl "180+1"]
[EndTime "10:28:58 PDT"]
[Termination "I_Enchev won by resignation"]

1. d4 {[%clk 0:03:00.9]} 1... Nf6 {[%clk 0:02:59.2]} 2. c4 {[%clk 0:03:01.3]}
2... c5 {[%clk 0:02:58.8]} 3. d5 {[%clk 0:03:01]} 3... e6 {[%clk 0:02:59.7]} 4.
Nc3 {[%clk 0:03:00.3]} 4... exd5 {[%clk 0:03:00.6]} 5. cxd5 {[%clk 0:03:00.9]}
5... d6 {[%clk 0:03:01.3]} 6. e4 {[%clk 0:03:01]} 6... g6 {[%clk 0:02:57.5]} 7.
Nge2 {[%clk 0:03:00.7]} 7... Nbd7 {[%clk 0:02:56.7]} 8. Ng3 {[%clk 0:02:58.9]}
8... a6 {[%clk 0:02:54.8]} 9. a4 {[%clk 0:02:57.9]} 9... Bg7 {[%clk 0:02:53.6]}
10. Be2 {[%clk 0:02:57.7]} 10... O-O {[%clk 0:02:53.5]} 11. O-O {[%clk 0:02:58]}
11... Re8 {[%clk 0:02:43.8]} 12. Bg5 {[%clk 0:02:51.6]} 12... h6 {[%clk
0:02:43]} 13. Be3 {[%clk 0:02:51.2]} 13... Ne5 {[%clk 0:02:40.2]} 14. h3 {[%clk
0:02:42.6]} 14... g5 {[%clk 0:02:33.7]} 15. f4 {[%clk 0:02:36.8]} 15... gxf4
{[%clk 0:02:33.3]} 16. Bxf4 {[%clk 0:02:36.4]} 16... Ng6 {[%clk 0:02:34.2]} 17.
Be3 {[%clk 0:02:31.2]} 17... Qb6 {[%clk 0:02:31.6]} 18. Qd2 {[%clk 0:02:30.9]}
18... Kh7 {[%clk 0:02:21]} 19. Kh1 {[%clk 0:02:17.8]} 19... Qb4 {[%clk
0:02:18.9]} 20. a5 {[%clk 0:02:11]} 20... b5 {[%clk 0:02:13.7]} 21. Rf3 {[%clk
0:01:54.2]} 21... Ne5 {[%clk 0:02:10.5]} 22. Rf2 {[%clk 0:01:54.1]} 22... Nc4
{[%clk 0:02:07.3]} 23. Bxc4 {[%clk 0:01:54]} 23... Qxc4 {[%clk 0:02:07.3]} 24.
Raf1 {[%clk 0:01:53.2]} 24... b4 {[%clk 0:02:02.3]} 25. Rxf6 {[%clk 0:01:50.1]}
25... bxc3 {[%clk 0:02:00.1]} 26. bxc3 {[%clk 0:01:48.7]} 26... Bxf6 {[%clk
0:01:47.3]} 27. Rxf6 {[%clk 0:01:44.8]} 27... Ra7 {[%clk 0:01:47.3]} 28. Rxh6+
{[%clk 0:01:41]} 28... Kg7 {[%clk 0:01:47]} 29. Rxd6 {[%clk 0:01:40.1]} 29... f5
{[%clk 0:01:20.4]} 30. Nh5+ {[%clk 0:01:09.1]} 30... Kf7 {[%clk 0:01:03.7]} 31.
Bg5 {[%clk 0:00:58.9]} 31... Rxe4 {[%clk 0:00:25.1]} 32. Bf6 {[%clk 0:00:35.4]}
32... f4 {[%clk 0:00:20.7]} 33. Qf2 {[%clk 0:00:29]} 33... Qe2 {[%clk
0:00:14.3]} 34. Qxe2 {[%clk 0:00:26]} 34... Rxe2 {[%clk 0:00:14]} 35. Nxf4
{[%clk 0:00:25.5]} 35... Re1+ {[%clk 0:00:13.8]} 36. Kh2 {[%clk 0:00:25.2]}
36... Rd7 {[%clk 0:00:12.1]} 37. Rxd7+ {[%clk 0:00:22.1]} 37... Bxd7 {[%clk
0:00:13]} 38. Bh4 {[%clk 0:00:20.8]} 38... Ra1 {[%clk 0:00:11.2]} 39. Nd3 {[%clk
0:00:20.3]} 39... Rxa5 {[%clk 0:00:10.7]} 40. c4 {[%clk 0:00:20.2]} 40... Bf5
{[%clk 0:00:08.4]} 41. Ne5+ {[%clk 0:00:20.3]} 41... Kg7 {[%clk 0:00:08.3]} 42.
g4 {[%clk 0:00:20.5]} 42... Ra2+ {[%clk 0:00:07.5]} 43. Kg3 {[%clk 0:00:20.4]}
43... Bc8 {[%clk 0:00:01.7]} 44. Bg5 {[%clk 0:00:19.8]} 44... a5 {[%clk
0:00:02.6]} 45. d6 {[%clk 0:00:19.1]} 45... a4 {[%clk 0:00:03.5]} 46. d7 {[%clk
0:00:19.1]} 46... Bxd7 {[%clk 0:00:04]} 47. Nxd7 {[%clk 0:00:20]} 47... Rc2
{[%clk 0:00:04.5]} 48. Bf6+ {[%clk 0:00:19.3]} 48... Kf7 {[%clk 0:00:04.4]} 49.
Bh8 {[%clk 0:00:19.3]} 49... Rxc4 {[%clk 0:00:03.4]} 50. Ne5+ {[%clk 0:00:18.8]}
50... Kg8 {[%clk 0:00:02.7]} 51. Nxc4 {[%clk 0:00:18.7]} 51... Kxh8 {[%clk
0:00:03.6]} 52. Kf4 {[%clk 0:00:19]} 52... Kg7 {[%clk 0:00:03.5]} 53. Ke5 {[%clk
0:00:19]} 1-0

[Event "*** Titled Tuesday Blitz"]
[Site "Chess.com"]
[Date "2021.03.30"]
[Round "3"]
[White "ajdemipopushi"]
[Black "Vandros57"]
[Result "0-1"]
[WhiteElo "2336"]
[BlackElo "2208"]
[TimeControl "180+1"]
[EndTime "10:28:59 PDT"]
[Termination "Vandros57 won on time"]

1. Nf3 {[%clk 0:03:00.9]} 1... Nf6 {[%clk 0:02:58.2]} 2. g3 {[%clk 0:03:01.1]}
2... d5 {[%clk 0:02:56.7]} 3. c4 {[%clk 0:03:01.2]} 3... e6 {[%clk 0:02:55.2]}
4. Bg2 {[%clk 0:03:01.4]} 4... c5 {[%clk 0:02:53.8]} 5. O-O {[%clk 0:03:01.1]}
5... Nc6 {[%clk 0:02:52.5]} 6. d4 {[%clk 0:03:01]} 6... cxd4 {[%clk 0:02:47.5]}
7. Nxd4 {[%clk 0:03:00.9]} 7... Bc5 {[%clk 0:02:45.5]} 8. Nb3 {[%clk 0:03:00.5]}
8... Be7 {[%clk 0:02:34.1]} 9. cxd5 {[%clk 0:03:00.3]} 9... exd5 {[%clk
0:02:29.8]} 10. Nc3 {[%clk 0:02:58.6]} 10... Be6 {[%clk 0:02:25.9]} 11. Be3
{[%clk 0:02:36.5]} 11... O-O {[%clk 0:02:24]} 12. Rc1 {[%clk 0:02:36]} 12... Rc8
{[%clk 0:02:18.9]} 13. Nd4 {[%clk 0:02:23.1]} 13... Bg4 {[%clk 0:02:11]} 14.
Nxc6 {[%clk 0:02:13]} 14... bxc6 {[%clk 0:02:09.6]} 15. Bxa7 {[%clk 0:02:10.4]}
15... Re8 {[%clk 0:01:53.7]} 16. h3 {[%clk 0:02:06.1]} 16... Bf5 {[%clk
0:01:50.6]} 17. Bd4 {[%clk 0:02:00.1]} 17... Qd7 {[%clk 0:01:44.6]} 18. g4
{[%clk 0:01:49.9]} 18... Be4 {[%clk 0:01:39.9]} 19. Nxe4 {[%clk 0:01:44.8]}
19... Nxe4 {[%clk 0:01:38.9]} 20. b3 {[%clk 0:01:05.6]} 20... Bd6 {[%clk
0:01:37.6]} 21. e3 {[%clk 0:01:01.7]} 21... Bb8 {[%clk 0:01:35.9]} 22. f4 {[%clk
0:00:37.3]} 22... c5 {[%clk 0:01:29.1]} 23. Ba1 {[%clk 0:00:35.2]} 23... Nf6
{[%clk 0:01:23.2]} 24. Bxf6 {[%clk 0:00:28.2]} 24... gxf6 {[%clk 0:01:22.4]} 25.
Qxd5 {[%clk 0:00:19.5]} 25... Qa7 {[%clk 0:01:07.2]} 26. Qd2 {[%clk 0:00:16.3]}
26... c4 {[%clk 0:01:03]} 27. Rxc4 {[%clk 0:00:14]} 27... Rxc4 {[%clk
0:01:00.7]} 28. bxc4 {[%clk 0:00:14]} 28... Rxe3 {[%clk 0:00:59.1]} 29. Kh1
{[%clk 0:00:14.2]} 29... Qa3 {[%clk 0:00:47.3]} 30. Qd8+ {[%clk 0:00:10]} 30...
Kg7 {[%clk 0:00:46.5]} 31. Qxb8 {[%clk 0:00:09.9]} 31... Rxh3+ {[%clk
0:00:45.4]} 32. Kg1 {[%clk 0:00:08.8]} 32... Qe3+ {[%clk 0:00:44.3]} 33. Rf2
{[%clk 0:00:09]} 33... Qe1+ {[%clk 0:00:39.2]} 34. Rf1 {[%clk 0:00:08.9]} 34...
Qe3+ {[%clk 0:00:38.2]} 35. Rf2 {[%clk 0:00:06.4]} 35... Qe1+ {[%clk 0:00:37.7]}
36. Bf1 {[%clk 0:00:05.4]} 36... Rg3+ {[%clk 0:00:35.6]} 37. Rg2 {[%clk
0:00:05.6]} 37... Qe3+ {[%clk 0:00:34.3]} 38. Kh1 {[%clk 0:00:05.6]} 38... Rh3+
{[%clk 0:00:33.1]} 39. Rh2 {[%clk 0:00:05.7]} 39... Qf3+ {[%clk 0:00:25.8]} 40.
Kg1 {[%clk 0:00:05.7]} 40... Qg3+ {[%clk 0:00:20.2]} 41. Rg2 {[%clk 0:00:03.4]}
41... Qe3+ {[%clk 0:00:19.6]} 42. Rf2 {[%clk 0:00:03.2]} 42... Rg3+ {[%clk
0:00:16]} 43. Bg2 {[%clk 0:00:02.5]} 43... Qe1+ {[%clk 0:00:14.2]} 44. Kh2
{[%clk 0:00:02.6]} 44... Qxf2 {[%clk 0:00:13.4]} 45. Qb7 {[%clk 0:00:02.8]}
45... Qxf4 {[%clk 0:00:11.7]} 46. Kg1 {[%clk 0:00:01.2]} 46... Qe3+ {[%clk
0:00:10.3]} 47. Kh2 {[%clk 0:00:01.2]} 47... Rxg4 {[%clk 0:00:09.9]} 0-1

[Event "*** Titled Tuesday Blitz"]
[Site "Chess.com"]
[Date "2021.03.30"]
[Round "3"]
[White "chess94cu"]
[Black "OK97"]
[Result "1-0"]
[WhiteElo "2576"]
[BlackElo "2791"]
[TimeControl "180+1"]
[EndTime "10:29:00 PDT"]
[Termination "chess94cu won on time"]

1. e4 {[%clk 0:03:00.9]} 1... e6 {[%clk 0:03:00.3]} 2. d4 {[%clk 0:02:59.4]}
2... d5 {[%clk 0:03:00.9]} 3. Nd2 {[%clk 0:03:00.1]} 3... c5 {[%clk 0:02:59.5]}
4. Ngf3 {[%clk 0:02:58.7]} 4... cxd4 {[%clk 0:02:58.7]} 5. exd5 {[%clk
0:02:46.2]} 5... Qxd5 {[%clk 0:02:59.6]} 6. Bc4 {[%clk 0:02:45.3]} 6... Qd7
{[%clk 0:02:59.8]} 7. O-O {[%clk 0:02:45.7]} 7... Nc6 {[%clk 0:02:59.1]} 8. Nb3
{[%clk 0:02:46.1]} 8... a6 {[%clk 0:02:54.3]} 9. a4 {[%clk 0:02:30.2]} 9... Nf6
{[%clk 0:02:50.9]} 10. Nfxd4 {[%clk 0:02:25.8]} 10... Nxd4 {[%clk 0:02:47.3]}
11. Qxd4 {[%clk 0:02:26.7]} 11... Qxd4 {[%clk 0:02:40.2]} 12. Nxd4 {[%clk
0:02:27.6]} 12... Bc5 {[%clk 0:02:27.5]} 13. Nb3 {[%clk 0:02:26.1]} 13... Bd6
{[%clk 0:02:24.6]} 14. Be2 {[%clk 0:02:19.4]} 14... Bd7 {[%clk 0:02:03.9]} 15.
Na5 {[%clk 0:02:08.4]} 15... b6 {[%clk 0:01:40.1]} 16. Nc4 {[%clk 0:01:39.6]}
16... Bc5 {[%clk 0:01:35.4]} 17. c3 {[%clk 0:01:35.3]} 17... a5 {[%clk 0:01:29]}
18. Ne5 {[%clk 0:01:14.8]} 18... Ke7 {[%clk 0:01:17.5]} 19. Bg5 {[%clk
0:01:10.8]} 19... h6 {[%clk 0:01:15.2]} 20. Bh4 {[%clk 0:00:49.9]} 20... Rhd8
{[%clk 0:01:05.9]} 21. Bf3 {[%clk 0:00:43.2]} 21... Rac8 {[%clk 0:01:05.4]} 22.
Rfd1 {[%clk 0:00:38.1]} 22... Be8 {[%clk 0:01:00.3]} 23. b3 {[%clk 0:00:37]}
23... g5 {[%clk 0:00:36]} 24. Bg3 {[%clk 0:00:35.5]} 24... Nd5 {[%clk
0:00:28.1]} 25. Rac1 {[%clk 0:00:30.5]} 25... Ba3 {[%clk 0:00:22.8]} 26. Rc2
{[%clk 0:00:14.8]} 26... Rxc3 {[%clk 0:00:20.8]} 27. Rxc3 {[%clk 0:00:14.5]}
27... Nxc3 {[%clk 0:00:21.7]} 28. Rxd8 {[%clk 0:00:14.8]} 28... Kxd8 {[%clk
0:00:22.6]} 29. Nc4 {[%clk 0:00:14.5]} 29... Bc5 {[%clk 0:00:21]} 30. Be5 {[%clk
0:00:14.9]} 30... Nd5 {[%clk 0:00:16.3]} 31. Bxd5 {[%clk 0:00:14.4]} 31... exd5
{[%clk 0:00:16.4]} 32. Nd6 {[%clk 0:00:15.3]} 32... Ke7 {[%clk 0:00:09.3]} 33.
Nxe8 {[%clk 0:00:15.4]} 33... Kxe8 {[%clk 0:00:10.2]} 34. Kf1 {[%clk 0:00:15.4]}
34... Ke7 {[%clk 0:00:09.5]} 35. Ke2 {[%clk 0:00:15.7]} 35... f6 {[%clk
0:00:08.9]} 36. Bb2 {[%clk 0:00:15.1]} 36... Ke6 {[%clk 0:00:09.2]} 37. f3
{[%clk 0:00:15.5]} 37... d4 {[%clk 0:00:06.5]} 38. Kd3 {[%clk 0:00:14.9]} 38...
Kd5 {[%clk 0:00:07.2]} 39. g4 {[%clk 0:00:15.2]} 39... Ke5 {[%clk 0:00:06.2]}
40. Bc1 {[%clk 0:00:14.2]} 40... Bb4 {[%clk 0:00:06.6]} 41. h3 {[%clk
0:00:14.2]} 41... Bc3 {[%clk 0:00:06.6]} 42. Kc4 {[%clk 0:00:13]} 42... f5
{[%clk 0:00:03.8]} 43. Kd3 {[%clk 0:00:12.7]} 43... f4 {[%clk 0:00:02.5]} 44.
Kc4 {[%clk 0:00:12.1]} 44... Kd6 {[%clk 0:00:03.1]} 45. Ba3+ {[%clk 0:00:10.9]}
45... Kc6 {[%clk 0:00:03.2]} 46. Bf8 {[%clk 0:00:10.3]} 1-0

[Event "*** Titled Tuesday Blitz"]
[Site "Chess.com"]
[Date "2021.03.30"]
[Round "3"]
[White "Keks2017"]
[Black "GMHess"]
[Result "1/2-1/2"]
[WhiteElo "2475"]
[BlackElo "2769"]
[TimeControl "180+1"]
[EndTime "10:29:02 PDT"]
[Termination "Game drawn by stalemate"]

1. g3 {[%clk 0:03:00]} 1... g6 {[%clk 0:02:57.6]} 2. Bg2 {[%clk 0:03:00.1]} 2...
Bg7 {[%clk 0:02:57]} 3. e4 {[%clk 0:03:00]} 3... e6 {[%clk 0:02:56.1]} 4. d3
{[%clk 0:02:58.5]} 4... Ne7 {[%clk 0:02:57]} 5. Nf3 {[%clk 0:02:58.4]} 5... a6
{[%clk 0:02:52.1]} 6. O-O {[%clk 0:02:58.1]} 6... d6 {[%clk 0:02:52.6]} 7. Re1
{[%clk 0:02:57.8]} 7... Nd7 {[%clk 0:02:53.1]} 8. d4 {[%clk 0:02:52.4]} 8... h6
{[%clk 0:02:50.5]} 9. c3 {[%clk 0:02:52.3]} 9... b6 {[%clk 0:02:50.4]} 10. e5
{[%clk 0:02:48.7]} 10... Bb7 {[%clk 0:02:44.4]} 11. exd6 {[%clk 0:02:48.6]}
11... cxd6 {[%clk 0:02:44.4]} 12. Nbd2 {[%clk 0:02:48]} 12... Qc7 {[%clk
0:02:41.8]} 13. Qe2 {[%clk 0:02:45.1]} 13... O-O {[%clk 0:02:40]} 14. h4 {[%clk
0:02:44.6]} 14... b5 {[%clk 0:02:21.8]} 15. Ne4 {[%clk 0:02:39.8]} 15... e5
{[%clk 0:02:13.2]} 16. dxe5 {[%clk 0:01:52.4]} 16... dxe5 {[%clk 0:02:14.1]} 17.
h5 {[%clk 0:01:50.8]} 17... f5 {[%clk 0:02:08.4]} 18. Ned2 {[%clk 0:01:48.8]}
18... g5 {[%clk 0:01:57.3]} 19. a4 {[%clk 0:01:28.4]} 19... b4 {[%clk
0:01:42.3]} 20. Qc4+ {[%clk 0:01:24.5]} 20... Qxc4 {[%clk 0:01:41.9]} 21. Nxc4
{[%clk 0:01:24.4]} 21... e4 {[%clk 0:01:27]} 22. Nd4 {[%clk 0:01:22.6]} 22...
bxc3 {[%clk 0:01:21.1]} 23. bxc3 {[%clk 0:01:22]} 23... Rac8 {[%clk 0:00:32.8]}
24. Bf1 {[%clk 0:01:14.6]} 24... Ne5 {[%clk 0:00:17.1]} 25. Nd6 {[%clk
0:01:09.9]} 25... Rxc3 {[%clk 0:00:07.4]} 26. Nxb7 {[%clk 0:01:07.2]} 26... Rb8
{[%clk 0:00:06]} 27. Nd6 {[%clk 0:01:02.2]} 27... Rd8 {[%clk 0:00:03.5]} 28. Bb2
{[%clk 0:00:57.1]} 28... Rc7 {[%clk 0:00:02.8]} 29. Ne6 {[%clk 0:00:33]} 29...
Rxd6 {[%clk 0:00:02.6]} 30. Bxe5 {[%clk 0:00:30.5]} 30... Bxe5 {[%clk
0:00:02.4]} 31. Nxc7 {[%clk 0:00:30.1]} 31... e3 {[%clk 0:00:02.7]} 32. Rxe3
{[%clk 0:00:26.4]} 32... Bxa1 {[%clk 0:00:02.9]} 33. Rxe7 {[%clk 0:00:26.2]}
33... Rd2 {[%clk 0:00:03.8]} 34. Bc4+ {[%clk 0:00:21.8]} 34... Kh8 {[%clk
0:00:03.1]} 35. Re2 {[%clk 0:00:21.1]} 35... Rd1+ {[%clk 0:00:03.2]} 36. Kg2
{[%clk 0:00:20.5]} 36... Rc1 {[%clk 0:00:04.1]} 37. Bxa6 {[%clk 0:00:17.9]}
37... Rxc7 {[%clk 0:00:03.6]} 38. Bd3 {[%clk 0:00:17.7]} 38... f4 {[%clk
0:00:03]} 39. gxf4 {[%clk 0:00:17.8]} 39... gxf4 {[%clk 0:00:03.9]} 40. Kf3
{[%clk 0:00:18]} 40... Bd4 {[%clk 0:00:03.4]} 41. Re4 {[%clk 0:00:17.5]} 41...
Bc5 {[%clk 0:00:02.7]} 42. Rxf4 {[%clk 0:00:17.4]} 42... Ra7 {[%clk 0:00:03.1]}
43. Bb5 {[%clk 0:00:16.6]} 43... Kg7 {[%clk 0:00:02.9]} 44. Rc4 {[%clk
0:00:16.3]} 44... Rf7+ {[%clk 0:00:02.7]} 45. Ke4 {[%clk 0:00:16.1]} 45... Bxf2
{[%clk 0:00:02.6]} 46. a5 {[%clk 0:00:16.4]} 46... Bg3 {[%clk 0:00:03.1]} 47. a6
{[%clk 0:00:16.5]} 47... Rf4+ {[%clk 0:00:03.4]} 48. Kd5 {[%clk 0:00:15.9]}
48... Rxc4 {[%clk 0:00:03.8]} 49. Bxc4 {[%clk 0:00:15.7]} 49... Bf2 {[%clk
0:00:04]} 50. Kc6 {[%clk 0:00:15.1]} 50... Kh8 {[%clk 0:00:04.4]} 51. Kb7 {[%clk
0:00:15.1]} 51... Kg7 {[%clk 0:00:05]} 52. a7 {[%clk 0:00:15.2]} 52... Bxa7
{[%clk 0:00:05.4]} 53. Kxa7 {[%clk 0:00:15.5]} 53... Kh8 {[%clk 0:00:06.3]} 54.
Bd3 {[%clk 0:00:15.6]} 54... Kg7 {[%clk 0:00:07.2]} 55. Bg6 {[%clk 0:00:16.2]}
55... Kh8 {[%clk 0:00:08.1]} 56. Kb7 {[%clk 0:00:16.6]} 56... Kg7 {[%clk
0:00:09]} 57. Kc7 {[%clk 0:00:17.2]} 57... Kh8 {[%clk 0:00:09.9]} 58. Kd7 {[%clk
0:00:17.7]} 58... Kg7 {[%clk 0:00:10.8]} 59. Ke7 {[%clk 0:00:18.2]} 59... Kh8
{[%clk 0:00:11.7]} 60. Kf7 {[%clk 0:00:18.7]} 1/2-1/2